bitfinex-derivatives/quotes_BTCF0:USTF0_20250318
["timestamp","ask_amount","ask_price","bid_price","bid_amount"]
[1742312415774,0.1942991,82244.0,82243.0,0.1215977]
[1742312415977,0.2888191,82244.0,82243.0,0.1215977]
[1742312416379,0.1216021,82242.0,82241.0,0.061441]
[1742312416570,0.1824134,82238.0,82237.0,0.121609]
[1742312417271,0.060804,82238.0,82237.0,0.121609]
[1742312417470,0.160804,82238.0,82237.0,0.121609]
[1742312417778,0.060804,82238.0,82237.0,0.121609]
[1742312417970,0.160804,82238.0,82237.0,0.121609]
[1742312418177,0.076704,82238.0,82237.0,0.121609]
[1742312418482,0.163804,82238.0,82237.0,0.121609]
[1742312418680,0.196904,82238.0,82237.0,0.121609]
[1742312418882,0.149904,82238.0,82237.0,0.121609]
[1742312419080,0.196904,82238.0,82237.0,0.121609]
[1742312419576,0.203808,82238.0,82237.0,0.121609]
[1742312419775,0.257708,82238.0,82237.0,0.121609]
[1742312420185,0.173608,82238.0,82237.0,0.121609]
[1742312420480,0.1361,82238.0,82237.0,0.121609]
[1742312420675,0.1361,82238.0,82237.0,0.153209]
[1742312421279,0.257708,82238.0,82237.0,0.121609]
[1742312421473,0.173608,82238.0,82237.0,0.121609]
[1742312421672,0.172608,82238.0,82237.0,0.121609]
[1742312421873,0.173608,82238.0,82237.0,0.121609]
[1742312422073,0.173708,82238.0,82237.0,0.121609]
[1742312422275,0.173908,82238.0,82237.0,0.121609]
[1742312422474,0.19112,82238.0,82237.0,0.121609]
[1742312422677,0.19312,82238.0,82237.0,0.121609]
[1742312422875,0.0668,82238.0,82237.0,0.121609]
[1742312423198,0.314728,82238.0,82237.0,0.121609]
[1742312423486,0.313728,82238.0,82237.0,0.121609]
[1742312423674,0.315728,82238.0,82237.0,0.121609]
[1742312423872,0.346928,82238.0,82237.0,0.121609]
[1742312424083,0.342928,82238.0,82237.0,0.121609]
[1742312424280,0.0608195,82218.0,82215.0,0.3608]
[1742312424581,0.060818,82220.0,82219.0,0.1216361]
[1742312424983,0.15662,82221.0,82220.0,0.1216346]
[1742312425182,0.0303,82221.0,82220.0,0.1216346]
[1742312425389,0.0303,82221.0,82220.0,0.1847346]
[1742312425785,0.36196,82228.0,82227.0,0.1216242]
[1742312425786,0.12632,82228.0,82227.0,0.1216242]
[1742312425971,0.00018234,82229.0,82228.0,0.1216228]
[1742312426176,0.3107001,82233.0,82232.0,0.1216168]
[1742312426480,0.00243196,82238.0,82237.0,0.1216094]
[1742312426879,0.01135088,82238.0,82225.0,0.0608134]
[1742312427081,0.1216213,82229.0,82228.0,1.5]
[1742312427375,0.1216199,82230.0,82229.0,0.0608105]
[1742312427576,0.2479367,82233.0,82232.0,0.1216168]
[1742312428185,0.1824297,82232.0,82231.0,0.1216179]
[1742312428885,0.1216228,82228.0,82227.0,0.3608]
[1742312429088,0.1216272,82225.0,82209.0,0.3608]
[1742312429294,0.1824578,82220.0,82219.0,0.1216316]
[1742312429690,0.1824578,82218.0,82217.0,0.1216377]
[1742312429988,0.1824578,82218.0,82215.0,0.1216407]
[1742312429989,0.1824623,82216.0,82215.0,0.1216407]
[1742312430285,0.059824,82211.0,82210.0,0.1216494]
[1742312430485,0.059824,82211.0,82210.0,0.1519494]
[1742312430881,0.056824,82211.0,82210.0,0.0303]
[1742312431081,0.056824,82211.0,82210.0,0.1216494]
[1742312431281,0.056824,82211.0,82210.0,0.1833494]
[1742312431481,0.3715157,82223.0,82210.0,0.0617]
[1742312431689,0.001,82211.0,82210.0,0.2491735]
[1742312433087,0.1216379,82218.0,82217.0,0.121639]
[1742312433287,0.2479561,82219.0,82218.0,0.1216375]
[1742312433488,0.2216361,82219.0,82218.0,0.1216375]
[1742312434185,0.1375361,82219.0,82218.0,0.1216375]
[1742312434385,0.1824734,82211.0,82210.0,0.1824705]
[1742312434593,0.2063734,82211.0,82210.0,0.1824705]
[1742312435381,0.1216494,82210.0,82197.0,0.12632]
[1742312435587,0.1216523,82208.0,82207.0,0.00018234]
[1742312435783,0.1216523,82208.0,82207.0,0.12183594]
[1742312435978,0.2543523,82208.0,82207.0,0.12183594]
[1742312436183,0.1327,82208.0,82207.0,0.12183594]
[1742312436585,0.0736,82208.0,82207.0,0.12183594]
[1742312436985,0.0737,82208.0,82207.0,0.12183594]
[1742312437186,0.12732,82211.0,82210.0,0.1216494]
[1742312437377,0.001,82211.0,82210.0,0.1216494]
[1742312437784,0.15906,82216.0,82215.0,0.121642]
[1742312438184,0.0327,82216.0,82215.0,0.121642]
[1742312438595,0.1327,82216.0,82215.0,0.121642]
[1742312438792,0.0736,82216.0,82215.0,0.121642]
[1742312439290,0.0645,82216.0,82215.0,0.121642]
[1742312439495,0.1861405,82216.0,82215.0,0.121642]
[1742312439693,0.1781405,82216.0,82215.0,0.121642]
[1742312439993,0.1951405,82216.0,82215.0,0.121642]
[1742312440187,0.2553405,82216.0,82215.0,0.121642]
[1742312440393,0.0608232,82212.0,82211.0,0.1216479]
[1742312440590,0.1824777,82209.0,82208.0,0.1216516]
[1742312440783,0.1216523,82208.0,82207.0,0.00018234]
[1742312440984,0.2164523,82208.0,82207.0,0.00018234]
[1742312441289,0.2346523,82208.0,82207.0,0.12183614]
[1742312441489,0.2254523,82208.0,82207.0,0.12183614]
[1742312441699,0.1038,82208.0,82207.0,0.12183614]
[1742312441884,0.071,82208.0,82207.0,0.12183614]
[1742312442090,0.0711,82208.0,82207.0,0.12183614]
[1742312442286,0.2518523,82208.0,82207.0,0.12183614]
[1742312442485,0.2538523,82208.0,82207.0,0.12183614]
[1742312442889,0.2862523,82208.0,82207.0,0.12183614]
[1742312443389,0.2180523,82208.0,82207.0,0.12183614]
[1742312443588,0.2270523,82208.0,82207.0,0.12183614]
[1742312443898,0.2862523,82208.0,82207.0,0.00018234]
[1742312444191,0.2862523,82208.0,82197.0,0.1824929]
[1742312444192,0.1216701,82198.0,82197.0,0.1824929]
[1742312444494,0.2433593,82194.0,82193.0,0.0608357]
[1742312445282,0.2216819,82188.0,82187.0,0.1825223]
[1742312445486,0.3480419,82188.0,82187.0,0.1825223]
[1742312445688,0.3443419,82188.0,82187.0,0.1825223]
[1742312445893,0.1216849,82186.0,82185.0,0.12186725]
[1742312446291,0.64689482,82186.0,82185.0,0.00018245]
[1742312446591,0.1825577,82173.0,82172.0,0.1217042]
[1742312446791,0.1825577,82173.0,82171.0,0.0608534]
[1742312446792,0.1217071,82171.0,82170.0,0.0608538]
[1742312446998,0.1535071,82171.0,82170.0,0.0608538]
[1742312447294,0.1815666,82169.0,82168.0,0.121711]
[1742312447598,0.2815666,82169.0,82168.0,0.121711]
[1742312447799,0.2223666,82169.0,82168.0,0.121711]
[1742312447990,0.1217145,82167.0,82166.0,0.1217132]
[1742312448494,0.1841145,82167.0,82166.0,0.1217132]
[1742312448883,0.1791145,82167.0,82166.0,0.1217132]
[1742312449286,0.1033,82167.0,82166.0,0.1217132]
[1742312449488,0.1034,82167.0,82166.0,0.1527132]
[1742312449685,0.12636,82170.0,82169.0,0.1217101]
[1742312449891,0.12636,82175.0,82174.0,0.1217027]
[1742312450185,0.22636,82175.0,82174.0,0.1217027]
[1742312450392,0.3119612,82175.0,82174.0,0.1217027]
[1742312450790,0.2960612,82175.0,82174.0,0.1217027]
[1742312451301,0.3278612,82175.0,82174.0,0.1217027]
[1742312451592,0.3129612,82175.0,82174.0,0.1217027]
[1742312451794,0.2275012,82175.0,82174.0,0.1217027]
[1742312452095,0.3538612,82175.0,82174.0,0.1217027]
[1742312452394,0.3558612,82175.0,82174.0,0.1217027]
[1742312452896,0.3558612,82175.0,82174.0,0.1518027]
[1742312453096,0.23416,82175.0,82174.0,0.1518027]
[1742312453295,0.23326,82175.0,82174.0,0.5126027]
[1742312453603,0.4159612,82175.0,82174.0,0.5126027]
[1742312453786,0.2896012,82175.0,82174.0,0.5126027]
[1742312453985,0.1679,82175.0,82174.0,0.5126027]
[1742312454189,0.2896012,82175.0,82174.0,0.5126027]
[1742312454597,0.1679,82175.0,82174.0,0.5126027]
[1742312454791,0.0358,82175.0,82174.0,0.5126027]
[1742312454987,0.1575012,82175.0,82174.0,0.5126027]
[1742312455200,0.2575012,82175.0,82174.0,0.5126027]
[1742312455395,0.0768,82175.0,82174.0,0.5126027]
[1742312455790,0.0768,82175.0,82174.0,0.5449027]
[1742312456196,0.2423012,82175.0,82174.0,0.5449027]
[1742312456398,0.1984012,82175.0,82174.0,0.1217027]
[1742312456696,0.2308012,82175.0,82174.0,0.1217027]
[1742312456886,0.3200012,82175.0,82174.0,0.1217027]
[1742312457586,0.1825577,82174.0,82173.0,0.121704]
[1742312457793,0.1217056,82172.0,82171.0,0.0608533]
[1742312458199,0.2249056,82172.0,82171.0,0.0608533]
[1742312458705,0.2838056,82172.0,82171.0,0.0608533]
[1742312458903,0.2248056,82172.0,82171.0,0.0608533]
[1742312459203,0.2868056,82172.0,82171.0,0.0608533]
[1742312459395,0.2278056,82172.0,82171.0,0.0608533]
[1742312459786,0.1825733,82167.0,82166.0,0.1825673]
[1742312459993,0.0608573,82166.0,82162.0,0.00018245]
[1742312460193,0.121719,82163.0,82162.0,0.00018245]
[1742312460398,0.1825933,82157.0,82156.0,0.1217264]
[1742312460603,0.3089933,82157.0,82156.0,0.2482903]
[1742312461190,0.3411933,82157.0,82156.0,0.2482903]
[1742312461803,0.319464,82157.0,82156.0,0.2482903]
[1742312462097,0.2586,82157.0,82156.0,0.2482903]
[1742312462298,0.0302,82158.0,82157.0,0.1217279]
[1742312462503,0.1566,82163.0,82162.0,0.1217205]
[1742312463001,0.1566,82163.0,82162.0,0.1853205]
[1742312463198,0.0302,82163.0,82162.0,0.1853205]
[1742312463401,0.00243412,82165.0,82164.0,0.1217175]
[1742312463801,0.03323412,82165.0,82164.0,0.1859175]
[1742312464389,0.03323412,82165.0,82157.0,0.0608638]
[1742312464594,0.1217249,82159.0,82158.0,0.1550264]
[1742312464788,0.2481249,82159.0,82158.0,0.1550264]
[1742312464992,0.3112249,82159.0,82158.0,0.1550264]
[1742312465300,0.3112249,82159.0,82158.0,0.1217264]
[1742312465502,0.0608647,82156.0,82154.0,0.0333]
[1742312465704,0.1826045,82152.0,82151.0,0.1826052]
[1742312465902,0.3090045,82152.0,82151.0,0.2128052]
[1742312466099,0.0608684,82151.0,82145.0,0.3608]
[1742312466409,0.1217397,82149.0,82147.0,0.1217414]
[1742312466604,0.1217397,82149.0,82147.0,0.1217419]
[1742312466907,0.19878445,82149.0,82148.0,0.12192377]
[1742312467109,0.19878445,82149.0,82148.0,0.15212377]
[1742312467307,0.23968445,82149.0,82148.0,0.15212377]
[1742312467505,0.32518445,82149.0,82148.0,0.15212377]
[1742312468396,0.0624,82149.0,82148.0,0.15212377]
[1742312468698,0.3105397,82149.0,82148.0,0.15212377]
[1742312469404,0.3105397,82149.0,82148.0,0.15512377]
[1742312469607,0.3129743,82149.0,82148.0,0.00318257]
[1742312470007,0.3129743,82149.0,82148.0,0.12492377]
[1742312470302,0.121759,82136.0,82135.0,0.0608797]
[1742312470810,0.1264,82137.0,82135.0,0.182639]
[1742312471109,0.152459,82136.0,82135.0,0.182639]
[1742312471306,0.01141117,82158.0,82132.0,0.01448081]
[1742312471504,0.01141117,82158.0,82128.0,0.3608]
[1742312471505,0.12418184,82144.0,82143.0,0.1217486]
[1742312471905,0.00243474,82144.0,82143.0,0.1217486]
[1742312472306,0.03393474,82144.0,82143.0,0.1217486]
[1742312472509,0.25568184,82144.0,82143.0,0.1217486]
[1742312473110,0.13393474,82144.0,82143.0,0.1217486]
[1742312473808,0.25568184,82144.0,82143.0,0.1217486]
[1742312473998,0.13393474,82144.0,82143.0,0.1217486]
[1742312474401,0.25568184,82144.0,82143.0,0.1217486]
[1742312475005,0.28598184,82144.0,82143.0,0.1217486]
[1742312475715,0.22688184,82144.0,82143.0,0.1217486]
[1742312476112,0.28598184,82144.0,82143.0,0.1217486]
[1742312476312,0.35328184,82144.0,82143.0,0.1217486]
[1742312476515,0.41238184,82144.0,82143.0,0.1217486]
[1742312476815,0.1826267,82142.0,82141.0,0.1217507]
[1742312477014,0.1217545,82139.0,82138.0,0.0608777]
[1742312477516,0.1217619,82134.0,82131.0,0.0608828]
[1742312477701,0.1217649,82132.0,82131.0,0.060883]
[1742312478105,0.1858649,82132.0,82131.0,0.060883]
[1742312478305,0.0641,82132.0,82131.0,0.060883]
[1742312478610,0.1537649,82132.0,82131.0,0.060883]
[1742312479006,0.060884,82130.0,82127.0,0.00012264]
[1742312479316,0.1207708,82128.0,82127.0,0.00012264]
[1742312479818,0.1858708,82128.0,82127.0,0.00012264]
[1742312480005,0.1217916,82114.0,82108.0,0.0609]
[1742312480200,0.1217916,82114.0,82110.0,0.1217958]
[1742312480201,0.1217961,82111.0,82110.0,0.1217958]
[1742312480718,0.1527961,82111.0,82110.0,0.1217958]
[1742312480913,0.1827111,82105.0,82104.0,0.1218059]
[1742312481621,0.220401,82107.0,82106.0,0.1218035]
[1742312482011,0.1673,82107.0,82106.0,0.1218035]
[1742312482217,0.0409,82107.0,82106.0,0.1218035]
[1742312482722,0.221802,82107.0,82106.0,0.1218035]
[1742312482913,0.174802,82107.0,82106.0,0.1549035]
[1742312483119,0.286002,82107.0,82106.0,0.1549035]
[1742312484021,0.286002,82107.0,82106.0,0.1559035]
[1742312484913,0.286002,82107.0,82106.0,0.1861035]
[1742312490220,0.220802,82107.0,82106.0,0.1861035]
[1742312490426,0.282902,82107.0,82106.0,0.1861035]
[1742312490920,0.1313,82107.0,82106.0,0.1861035]
[1742312491124,0.00018268,82113.0,82112.0,0.1217946]
[1742312491424,0.12662268,82113.0,82112.0,0.1217946]
[1742312491627,0.00018268,82113.0,82112.0,0.1538946]
[1742312491823,0.00018268,82113.0,82112.0,0.1845946]
[1742312492019,0.12197578,82113.0,82112.0,0.1845946]
[1742312492421,0.18517578,82113.0,82112.0,0.0628]
[1742312492620,0.18517578,82113.0,82112.0,0.0307]
[1742312492927,0.1826934,82112.0,82111.0,0.121796]
[1742312493328,0.2457934,82112.0,82111.0,0.152496]
[1742312493716,0.2457934,82112.0,82111.0,0.184096]
[1742312494421,0.2457934,82112.0,82111.0,0.0307]
[1742312496131,0.2457934,82112.0,82111.0,0.1524961]
[1742312496132,0.3457934,82112.0,82111.0,0.1524961]
[1742312496519,0.36074127,82112.0,82111.0,0.1836961]
[1742312497220,0.29274127,82112.0,82111.0,0.1836961]
[1742312497620,0.36074127,82112.0,82111.0,0.1836961]
[1742312498132,0.121805,82106.0,82105.0,0.1218008]
[1742312498430,0.221805,82106.0,82105.0,0.0638]
[1742312498630,0.1218109,82101.0,82096.0,0.1218177]
[1742312498834,0.1751109,82101.0,82099.0,0.1544132]
[1742312499031,0.4442509,82101.0,82099.0,0.1544132]
[1742312499330,0.7368509,82101.0,82100.0,0.1326]
[1742312499527,0.1827747,82077.0,82076.0,0.0609225]
[1742312499719,0.1827747,82077.0,82076.0,0.1827606]
[1742312499720,0.3691394,82077.0,82076.0,0.1827606]
[1742312499925,0.3691394,82077.0,82074.0,0.155051]
[1742312499926,0.1218495,82075.0,82074.0,0.155051]
[1742312500326,0.1519495,82075.0,82074.0,0.155051]
[1742312500723,0.1218524,82073.0,82072.0,0.1218529]
[1742312500931,0.1218539,82072.0,82071.0,0.34148256]
[1742312501130,0.1816539,82072.0,82071.0,0.34148256]
[1742312501540,0.1816539,82072.0,82071.0,0.21962796]
[1742312501724,0.1218614,82067.0,82066.0,0.41250467]
[1742312501920,0.2483014,82067.0,82066.0,0.41250467]
[1742312502128,0.2483014,82067.0,82066.0,0.29064187]
[1742312502335,0.2483014,82067.0,82066.0,0.41250467]
[1742312502639,0.2790014,82067.0,82066.0,0.41250467]
[1742312503038,0.2810014,82067.0,82066.0,0.41250467]
[1742312503634,0.2830014,82067.0,82066.0,0.41250467]
[1742312504140,0.1565614,82067.0,82066.0,0.1532628]
[1742312504340,0.2830014,82067.0,82066.0,0.1532628]
[1742312504539,0.3240014,82067.0,82066.0,0.1532628]
[1742312505037,0.3830014,82067.0,82066.0,0.1532628]
[1742312505236,0.3240014,82067.0,82066.0,0.1532628]
[1742312505751,0.3830014,82067.0,82066.0,0.1532628]
[1742312505939,0.0609351,82062.0,82059.0,0.0609362]
[1742312506128,0.061,82061.0,82060.0,0.0323]
[1742312506330,0.061,82061.0,82046.0,0.0923456]
[1742312506331,0.0609447,82049.0,82046.0,0.0923456]
[1742312506642,0.2146358,82049.0,82048.0,0.1541885]
[1742312506827,0.2828358,82049.0,82048.0,0.1541885]
[1742312507339,0.2238358,82049.0,82048.0,0.1541885]
[1742312507542,0.1019447,82049.0,82048.0,0.1541885]
[1742312508249,0.0927447,82049.0,82048.0,0.1541885]
[1742312508430,0.1,82049.0,82048.0,0.1541885]
[1742312508735,0.12644,82051.0,82050.0,0.1218866]
[1742312508937,0.12644,82051.0,82048.0,0.154188]
[1742312508938,0.4107001,82054.0,82053.0,0.1218821]
[1742312509142,0.5325808,82054.0,82053.0,0.1218821]
[1742312509344,0.4325808,82054.0,82053.0,0.1218821]
[1742312510638,0.3107001,82054.0,82053.0,0.1218821]
[1742312511034,0.4325808,82054.0,82053.0,0.1218821]
[1742312511239,0.3107001,82054.0,82053.0,0.1218821]
[1742312512845,0.4325808,82054.0,82053.0,0.1218821]
[1742312513553,0.1218807,82054.0,82053.0,0.1218821]
[1742312514050,0.1540807,82054.0,82053.0,0.1551821]
[1742312514345,0.30948091,82056.0,82055.0,0.1218792]
[1742312514735,0.30948091,82056.0,82055.0,0.1881792]
[1742312517251,0.30948091,82056.0,82055.0,0.1551792]
[1742312518136,0.30948091,82056.0,82055.0,0.1856792]
[1742312518743,0.00018281,82056.0,82055.0,0.1856792]
[1742312518950,0.12206051,82056.0,82055.0,0.1856792]
[1742312519543,0.12406051,82056.0,82055.0,0.1856792]
[1742312519743,0.15626051,82056.0,82055.0,0.1856792]
[1742312519944,0.25626051,82056.0,82055.0,0.1856792]
[1742312520340,0.00218281,82056.0,82055.0,0.1856792]
[1742312520648,0.3107001,82072.0,82071.0,0.1218554]
[1742312520847,0.532554,82072.0,82071.0,0.1218554]
[1742312521039,0.3517001,82072.0,82071.0,0.1218554]
[1742312521246,0.3517001,82072.0,82071.0,0.1872554]
[1742312521441,0.1,82072.0,82071.0,0.1872554]
[1742312521744,0.00018281,82080.0,82079.0,0.1218435]
[1742312521938,0.0303,82090.0,82089.0,0.1218287]
[1742312522247,0.2521272,82090.0,82089.0,0.1872287]
[1742312522551,0.1218421,82080.0,82079.0,0.1218428]
[1742312522842,0.1218524,82073.0,82072.0,0.1872519]
[1742312523048,0.2218524,82073.0,82072.0,0.3091039]
[1742312523252,0.2521524,82073.0,82072.0,0.3091039]
[1742312523447,0.1840524,82073.0,82072.0,0.3091039]
[1742312523642,0.2521524,82073.0,82072.0,0.3091039]
[1742312523949,0.2521524,82073.0,82064.0,0.12204861]
[1742312523950,0.1218643,82065.0,82064.0,0.12204861]
[1742312524137,0.29705208,82065.0,82064.0,0.12204861]
[1742312524443,0.28264139,82065.0,82064.0,0.12204861]
[1742312524749,0.25074139,82065.0,82064.0,0.12204861]
[1742312524945,0.25074139,82065.0,82064.0,0.18324861]
[1742312524946,0.28164139,82065.0,82064.0,0.18324861]
[1742312525150,0.12887709,82065.0,82064.0,0.18324861]
[1742312525445,0.00243709,82065.0,82064.0,0.55811368]
[1742312525653,0.00643709,82065.0,82064.0,0.58951368]
[1742312526452,0.11405097,82074.0,82064.0,0.42218281]
[1742312526653,0.11405097,82074.0,82064.0,0.18324551]
[1742312526654,0.1218643,82065.0,82064.0,0.18324551]
[1742312526954,0.4826643,82065.0,82064.0,0.00018281]
[1742312527136,0.1228643,82065.0,82064.0,0.00018281]
[1742312527338,0.0631,82065.0,82064.0,0.12204861]
[1742312527546,0.1849643,82065.0,82064.0,0.12204861]
[1742312527745,0.1849643,82065.0,82064.0,0.12304861]
[1742312527946,0.001,82065.0,82064.0,0.18584861]
[1742312528447,0.004,82065.0,82064.0,0.18484861]
[1742312529444,0.003,82065.0,82064.0,0.18484861]
[1742312529645,0.2608643,82065.0,82064.0,0.18484861]
[1742312529840,0.139,82065.0,82064.0,0.18484861]
[1742312530051,0.039,82065.0,82064.0,0.18484861]
[1742312530449,0.007,82065.0,82064.0,0.18484861]
[1742312530649,0.004,82065.0,82064.0,0.18484861]
[1742312530851,0.006,82065.0,82064.0,0.18484861]
[1742312531358,0.007,82065.0,82064.0,0.18484861]
[1742312531654,0.0388,82065.0,82064.0,0.18484861]
[1742312532053,0.006,82065.0,82064.0,0.18484861]
[1742312532239,0.032,82082.0,82080.0,0.1218421]
[1742312532560,0.3107001,82084.0,82080.0,0.1853421]
[1742312533852,0.00218281,82081.0,82080.0,0.1853421]
[1742312534242,0.10218281,82081.0,82080.0,0.1853421]
[1742312534444,0.10218281,82081.0,82080.0,0.19941122]
[1742312534645,0.22402341,82081.0,82080.0,0.1853421]
[1742312534853,0.04108281,82081.0,82080.0,0.1530421]
[1742312535052,0.07898281,82081.0,82080.0,0.1530421]
[1742312535252,0.07898281,82081.0,82080.0,0.1830421]
[1742312535452,0.28892341,82081.0,82080.0,0.1830421]
[1742312535653,0.29192341,82081.0,82080.0,0.1830421]
[1742312536047,0.22372341,82081.0,82080.0,0.1830421]
[1742312536557,0.22372341,82081.0,82078.0,0.01399914]
[1742312536558,0.1827668,82079.0,82078.0,0.1218437]
[1742312536764,0.2146668,82079.0,82078.0,0.1218437]
[1742312537260,0.2827668,82079.0,82078.0,0.1528437]
[1742312537453,0.2827668,82079.0,82078.0,0.1672356]
[1742312537952,0.1049218,82079.0,82078.0,0.1672356]
[1742312538153,0.047,82079.0,82078.0,0.1999356]
[1742312538352,0.112,82079.0,82078.0,0.1999356]
[1742312538549,0.2338435,82079.0,82078.0,0.1999356]
[1742312538856,0.2928435,82079.0,82078.0,0.1855437]
[1742312539049,0.2338435,82079.0,82078.0,0.1855437]
[1742312539247,0.138,82079.0,82078.0,0.1855437]
[1742312539761,0.2598435,82079.0,82078.0,0.1855437]
[1742312540553,0.006,82079.0,82078.0,0.5463437]
[1742312541445,0.003,82079.0,82078.0,0.5463437]
[1742312541952,0.0362,82079.0,82078.0,0.5463437]
[1742312542255,0.0332,82079.0,82078.0,0.5463437]
[1742312542443,0.1560435,82079.0,82078.0,0.5463437]
[1742312542648,0.1560435,82079.0,82070.0,0.1264]
[1742312542649,0.0609315,82067.0,82064.0,0.12204181]
[1742312542855,0.1218628,82066.0,82064.0,0.00018281]
[1742312543057,0.1218643,82065.0,82064.0,0.00018281]
[1742312543357,0.0609471,82046.0,82041.0,1.0726693]
[1742312543554,0.0609447,82049.0,82048.0,0.1218866]
[1742312543756,0.0609447,82049.0,82048.0,0.1534866]
[1742312543947,0.0609447,82049.0,82042.0,0.0328]
[1742312543948,0.0609522,82039.0,82036.0,0.29064187]
[1742312544148,0.1828581,82038.0,82037.0,0.0609529]
[1742312544344,0.0609522,82038.0,82037.0,0.10710623]
[1742312544556,0.0579522,82038.0,82037.0,0.10710623]
[1742312544946,0.0569522,82038.0,82037.0,0.10710623]
[1742312545362,0.0569522,82038.0,82037.0,0.0925529]
[1742312545664,0.2833522,82038.0,82037.0,0.0609529]
[1742312546161,0.1219059,82037.0,82036.0,0.29464187]
[1742312546345,0.1538059,82037.0,82036.0,0.29464187]
[1742312546661,0.1219089,82035.0,82034.0,0.1219101]
[1742312546959,0.1199089,82035.0,82034.0,0.1219101]
[1742312547162,0.1219163,82032.0,82031.0,0.1219134]
[1742312547361,0.1219356,82017.0,82005.0,0.1219531]
[1742312547549,0.1799263,82012.0,82011.0,0.1219379]
[1742312548552,0.0609691,82016.0,82015.0,0.1219386]
[1742312549061,0.2483756,82017.0,82016.0,0.1219371]
[1742312550358,0.12644,82017.0,82016.0,0.1219371]
[1742312550564,0.12644,82017.0,82016.0,0.1851371]
[1742312551060,0.00018281,82020.0,82016.0,0.1851371]
[1742312551061,0.00018281,82020.0,82019.0,0.1219327]
[1742312551466,0.3608,82031.0,82018.0,0.3608]
[1742312551769,0.1219093,82035.0,82034.0,0.1219104]
[1742312552363,0.1219061,82037.0,82036.0,0.1219059]
[1742312552664,0.3608,82041.0,82037.0,0.1219059]
[1742312552862,0.4827008,82041.0,82037.0,0.1842059]
[1742312553059,0.4837808,82041.0,82037.0,0.1842059]
[1742312553258,0.36188,82041.0,82037.0,0.1842059]
[1742312553454,0.00018281,82045.0,82037.0,0.1842059]
[1742312553654,0.00018281,82045.0,82037.0,0.19820567]
[1742312553855,0.1218991,82042.0,82037.0,0.19820567]
[1742312554058,0.00543789,82038.0,82037.0,0.19820567]
[1742312555060,0.12734229,82038.0,82037.0,0.1842059]
[1742312555471,0.1219178,82029.0,82019.0,0.00064]
[1742312555770,0.1219342,82018.0,82017.0,0.06114007]
[1742312555960,0.4827342,82018.0,82017.0,0.06114007]
[1742312556359,0.5448342,82018.0,82017.0,0.06114007]
[1742312556657,0.6176342,82018.0,82017.0,0.06114007]
[1742312557349,0.5979342,82018.0,82017.0,0.06114007]
[1742312557555,0.6448342,82018.0,82017.0,0.00017267]
[1742312557856,0.5858342,82018.0,82017.0,0.12210827]
[1742312558258,0.6448342,82018.0,82017.0,0.12210827]
[1742312558562,0.6009342,82018.0,82017.0,0.00017267]
[1742312558756,0.6009342,82018.0,82017.0,0.12210827]
[1742312559461,0.6448342,82018.0,82017.0,0.12210827]
[1742312559663,0.5767342,82018.0,82017.0,0.12210827]
[1742312559867,0.6448342,82018.0,82017.0,0.00017267]
[1742312560066,0.5766342,82018.0,82017.0,0.00017267]
[1742312560567,0.6448342,82018.0,82017.0,0.00017267]
[1742312561266,0.6448342,82018.0,82017.0,0.12210827]
[1742312561866,0.5767342,82018.0,82017.0,0.12210827]
[1742312562263,0.6448342,82018.0,82017.0,0.12210827]
[1742312562575,0.6448342,82018.0,82017.0,0.00017267]
[1742312563071,0.7713142,82018.0,82017.0,0.00017267]
[1742312563267,0.7274142,82018.0,82017.0,0.00017267]
[1742312563576,0.7713142,82018.0,82017.0,0.00017267]
[1742312563871,0.7275142,82018.0,82017.0,0.12210827]
[1742312564073,0.7713142,82018.0,82017.0,0.12210827]
[1742312564765,0.7274142,82018.0,82017.0,0.12210827]
[1742312565074,0.7713142,82018.0,82017.0,0.12210827]
[1742312566070,0.7123142,82018.0,82017.0,0.12210827]
[1742312566374,0.7713142,82018.0,82017.0,0.12210827]
[1742312566673,0.7713142,82018.0,82017.0,0.18620827]
[1742312568170,0.6448342,82018.0,82017.0,0.18620827]
[1742312568376,0.6143342,82018.0,82017.0,0.18620827]
[1742312569366,0.4924,82018.0,82017.0,0.18620827]
[1742312569565,0.1316,82018.0,82017.0,0.18620827]
[1742312569765,0.2535342,82018.0,82017.0,0.18620827]
[1742312570575,0.1,82018.0,82017.0,0.18620827]
[1742312570779,0.67262011,82022.0,82021.0,0.1219297]
[1742312570780,0.79454951,82022.0,82021.0,0.1219297]
[1742312570975,0.7934295,82022.0,82021.0,0.1549297]
[1742312571167,0.7934295,82022.0,82021.0,0.1874297]
[1742312571368,0.8246295,82022.0,82021.0,0.1874297]
[1742312572072,0.8266295,82022.0,82021.0,0.20159435]
[1742312572269,0.8266295,82022.0,82021.0,0.1874297]
[1742312572270,0.1551282,82022.0,82021.0,0.1874297]
[1742312572462,0.1856282,82022.0,82021.0,0.1874297]
[1742312572668,0.1856282,82022.0,82017.0,0.00017267]
[1742312572669,0.1219327,82019.0,82017.0,0.00017267]
[1742312572977,0.1847342,82018.0,82017.0,0.00017267]
[1742312573171,0.2171342,82018.0,82017.0,0.00017267]
[1742312573377,0.2171342,82018.0,82017.0,0.12210827]
[1742312573572,0.2171342,82018.0,82017.0,0.05345196]
[1742312573975,0.1847342,82018.0,82017.0,0.11735196]
[1742312574570,0.4217647,82022.0,82021.0,0.1219297]
[1742312574878,0.1219342,82018.0,82017.0,0.2467997]
[1742312575085,0.1219342,82018.0,82017.0,0.1828997]
[1742312575682,0.1539342,82018.0,82017.0,0.0609671]
[1742312575875,0.2219342,82018.0,82017.0,0.0609671]
[1742312576071,0.2856342,82018.0,82017.0,0.0609671]
[1742312576267,0.1219431,82012.0,82011.0,0.1829094]
[1742312576482,0.2219431,82012.0,82011.0,0.1829094]
[1742312576788,0.2856431,82012.0,82011.0,0.1829094]
[1742312577177,0.2175431,82012.0,82011.0,0.1829094]
[1742312577372,0.2856431,82012.0,82011.0,0.1829094]
[1742312578584,0.1219461,82010.0,82009.0,0.0609737]
[1742312578878,0.1538461,82010.0,82009.0,0.0609737]
[1742312579084,0.2373461,82010.0,82009.0,0.0609737]
[1742312579270,0.2161461,82010.0,82009.0,0.0609737]
[1742312579674,0.2843461,82010.0,82009.0,0.0609737]
[1742312579870,0.2374461,82010.0,82009.0,0.0609737]
[1742312580281,0.2161461,82010.0,82009.0,0.0609737]
[1742312581088,0.2843461,82010.0,82009.0,0.0609737]
[1742312581485,0.2161461,82010.0,82009.0,0.0609737]
[1742312581686,0.2843461,82010.0,82009.0,0.0609737]
[1742312582392,0.2539461,82010.0,82009.0,0.0609737]
[1742312582989,0.1857461,82010.0,82009.0,0.0609737]
[1742312583190,0.2539461,82010.0,82009.0,0.0609737]
[1742312583393,0.2382461,82010.0,82009.0,0.0609737]
[1742312583580,0.2170461,82010.0,82009.0,0.0609737]
[1742312583780,0.2852461,82010.0,82009.0,0.0609737]